[Event "CZE-ch Open 2019"]
[Site "Ostrava"]
[Date "2019.05.03"]
[Round "7.25"]
[White "Kanakova, Natalie"]
[Black "Jun, Rudolf Jr."]
[Result "1/2-1/2"]
[ECO "A05"]
[WhiteElo "2202"]
[BlackElo "2138"]
[Annotator "NA"]
[PlyCount "141"]
[EventDate "2019.04.27"]
[EventType "swiss"]
[EventCountry "CZE"]
[SourceTitle "playchess.com"]
[Source "ChessBase"]
[SourceQuality "1"]
[TimeControl "40/5400+30:1800+30"]

1. Nf3 {[%emt 0:00:00]} Nf6 {[%emt 0:00:00]} 2. g3 {[%emt 0:00:00]} g6 {[%emt 0:00:00]} 3. b3 {[%emt 0:00:12]} Bg7 {[%emt 0:00:20]} 4. Bb2 {[%emt 0:00:06]} O-O {[%emt 0:00:12]} 5. Bg2 {[%emt 0:00:39]} d6 {[%emt 0:00:37]} 6. d4 {[%emt 0:01:37]} c6 {[%emt 0:00:38]} 7. O-O {[%emt 0:01:13]} Qa5 {[%emt 0:02:05]} 8. c4 {[%emt 0:02:38]} Qh5 {[%emt 0:00:21] E60: King's Indian: Unusual lines and Fianchetto Variation without Nc3} 9. Re1 {[%emt 0:05:46]} (9. Nbd2 Bg4 10. Re1 Nbd7 11. Nf1 Bh3 12. Ne3 Ng4 13. Nxg4 Bxg4 14. Qd2 a5 15. d5 Bxb2 16. Qxb2 cxd5 17. cxd5 {½-½ (98) Dreev,A (2664)-Shoker,S (2489) Almaty 2016}) 9... Bh3 {[%emt 0:00:55]} 10. Nbd2 {[%emt 0:04:45]} Bxg2 {[%emt 0:00:38]} 11. Kxg2 {[%emt 0:00:04]} Nbd7 {[%emt 0:00:58]} 12. e4 {[%emt 0:09:56]} e5 {[%emt 0:02:20]} 13. Nf1 $146 {[%emt 0:07:36]} ({Predecessor:} 13. h3 exd4 14. Nxd4 Qa5 15. a3 Qb6 16. N4f3 a5 17. Qc2 Rfe8 {0-1 (30) Eyenghe,S-Balogun,O (2223) Lagos 2014}) 13... Rad8 {[%emt 0:05:27]} 14. h3 {[%emt 0:07:05]} exd4 {[%emt 0:01:50]} 15. Nxd4 {[%emt 0:07:26]} Qa5 {[%emt 0:01:33]} 16. Qc2 {[%emt 0:03:15]} Rfe8 {[%emt 0:01:44]} 17. Bc3 {[%emt 0:02:59]} Qc7 {[%emt 0:05:03]} 18. Bb2 {[%emt 0:03:46]} Qa5 {[%emt 0:11:16]} 19. Nf3 {[%emt 0:10:17]} Nh5 {[%emt 0:23:27]} 20. Bxg7 {[%emt 0:03:17]} Nxg7 {[%emt 0:00:12]} 21. Ne3 {[%emt 0:04:02]} Ne5 {[%emt 0:02:46]} 22. Nxe5 {[%emt 0:00:32]} dxe5 {[%emt 0:00:15]} 23. Red1 {[%emt 0:04:32]} h5 {[%emt 0:03:45]} 24. Qb2 {[%emt 0:00:57]} Ne6 {[%emt 0:02:13]} 25. b4 {[%emt 0:00:59]} Qc7 {[%emt 0:01:38]} 26. c5 {[%emt 0:03:58]} b5 {[%emt 0:02:43]} 27. Nc2 {[%emt 0:01:36]} Ng5 {[%emt 0:04:14]} 28. Ne3 {[%emt 0:11:05]} Nxe4 {[%emt 0:03:11]} 29. Qc2 {[%emt 0:00:06]} Nf6 {[%emt 0:02:26]} 30. a4 {[%emt 0:00:10]} a6 {[%emt 0:00:18]} 31. axb5 {[%emt 0:00:05]} axb5 {[%emt 0:00:42]} 32. Qe2 {[%emt 0:02:25]} Kg7 {[%emt 0:07:47]} 33. h4 {[%emt 0:01:12]} Rd4 {[%emt 0:01:10]} 34. Nc2 {[%emt 0:00:04]} Rxd1 {[%emt 0:01:57]} 35. Qxd1 {[%emt 0:01:03]} Nd5 {[%emt 0:00:11]} 36. Ra6 {[%emt 0:00:24]} Qd7 {[%emt 0:01:59]} 37. Qf3 {[%emt 0:01:14]} e4 {[%emt 0:02:40]} 38. Qe2 {[%emt 0:00:31]} Nc7 {[%emt 0:05:02]} 39. Ra3 {[%emt 0:00:43]} Qd5 {[%emt 0:01:32]} 40. Ne3 {[%emt 0:00:42]} Qd4 {[%emt 0:01:01]} 41. Nc2 {[%emt 0:05:02]} Qe5 {[%emt 0:01:29]} 42. Qd2 {[%emt 0:08:01]} Nd5 {[%emt 0:01:46]} 43. Ra6 {[%emt 0:00:33]} e3 {[%emt 0:04:19]} 44. fxe3 {[%emt 0:00:57]} (44. Nxe3 $17 Qe4+ {[%mdl 64] Double Attack} 45. Kh2) 44... Qe4+ {[%emt 0:02:03]} 45. Kh2 {[%emt 0:01:51]} Nf6 {[%emt 0:01:03]} 46. Qe2 $2 {[%emt 0:06:39]} (46. Ra1) 46... Ng4+ {[%emt 0:00:34]} 47. Kg1 {[%emt 0:00:03]} Rd8 {[%emt 0:00:59]} 48. Ra1 {[%emt 0:03:19]} Qe5 {[%emt 0:02:18]} 49. Kg2 {[%emt 0:00:21]} Qc3 {[%emt 0:00:36]} 50. Ra3 {[%emt 0:00:40]} Qb2 {[%emt 0:02:56]} 51. Kf3 {[%emt 0:03:17]} Ne5+ {[%emt 0:02:50]} 52. Kf2 {[%emt 0:00:54]} Ng4+ {[%emt 0:01:05]} 53. Kf3 {[%emt 0:00:05]} Re8 {[%emt 0:02:36]} 54. Qd2 {[%emt 0:01:23]} Re5 $2 {[%emt 0:03:38]} (54... Qf6+ $19 {has better winning chances.} 55. Kg2 Qf5) 55. Qc3 {[%emt 0:02:28]} Qxc3 {[%emt 0:02:11]} 56. Rxc3 {[%emt 0:00:03]} Rf5+ {[%emt 0:00:15]} 57. Ke2 {[%emt 0:01:56]} Rf2+ {[%emt 0:00:23]} 58. Kd3 {[%emt 0:00:42]} (58. Ke1 $17) 58... Ne5+ {[%emt 0:01:07]} 59. Ke4 {[%emt 0:00:47]} Nc4 {[%emt 0:00:17]} 60. Ne1 {[%emt 0:00:33]} f5+ {[%emt 0:00:16]} 61. Kd4 {[%emt 0:00:04]} Kf6 {[%emt 0:00:59]} 62. Rc2 {[%emt 0:01:25]} Rf1 {[%emt 0:01:54]} 63. Re2 {[%emt 0:00:08]} Rg1 {[%emt 0:01:45]} 64. Ng2 $1 $11 {[%emt 0:00:03] and White is okay.} Ne5 {[%emt 0:00:54]} 65. Kc3 {[%emt 0:00:39]} Nc4 $2 {[%emt 0:00:32]} (65... Rc1+ $19 66. Kb3 Rf1) 66. Kd3 $2 {[%emt 0:01:04]} Ke5 $2 {[%emt 0:00:47]} ({Black should try} 66... Rd1+ $19 67. Kc3 Rc1+ 68. Rc2 Ra1) 67. e4 $1 {[%emt 0:00:14]} fxe4+ $11 {[%emt 0:01:13]} (67... Kf6 $5 {[%cal Rc4e5]} 68. exf5 Kxf5 69. Ne3+ Nxe3 70. Rxe3 Rd1+ 71. Kc2 Rd4 72. Rf3+ Ke5 $15) 68. Rxe4+ {[%emt 0:00:04]} Kf5 {[%emt 0:01:27]} 69. Rf4+ {[%emt 0:00:16]} Ke5 {[%emt 0:00:32]} 70. Re4+ {[%emt 0:00:02]} Kf5 {[%emt 0:00:12]} 71. Rf4+ {[%emt 0:00:03]} 1/2-1/2

[Event "CZE-ch Open 2019"]
[Site "Ostrava"]
[Date "2019.05.03"]
[Round "7.26"]
[White "Vesselovsky, Serguei"]
[Black "Bures, Martin"]
[Result "1-0"]
[ECO "C17"]
[WhiteElo "2335"]
[BlackElo "2150"]
[Annotator "NA"]
[PlyCount "115"]
[EventDate "2019.04.27"]
[EventType "swiss"]
[EventCountry "CZE"]
[SourceTitle "playchess.com"]
[Source "ChessBase"]
[SourceQuality "1"]
[TimeControl "40/5400+30:1800+30"]

1. e4 {[%emt 0:00:00]} e6 2. d4 {[%emt 0:00:07]} d5 {[%emt 0:02:25]} 3. Nc3 {[%emt 0:00:11]} Bb4 {[%emt 0:00:09]} 4. e5 {[%emt 0:01:26]} c5 {[%emt 0:02:36]} 5. Bd2 {[%emt 0:00:43]} Ne7 {[%emt 0:03:01]} 6. Nce2 {[%emt 0:01:16] C17: French: 3 Nc3 Bb4 4 e5 c5 sidelines} Bxd2+ {[%emt 0:01:33]} 7. Qxd2 {[%emt 0:00:07]} b6 {[%emt 0:06:13]} 8. f4 {[%emt 0:00:43]} Ba6 {[%emt 0:01:28]} 9. Nf3 {[%emt 0:00:12]} Nbc6 {[%emt 0:03:00]} 10. c3 {[%emt 0:05:06]} Rc8 {[%emt 0:06:26]} (10... O-O 11. g4 f6 12. Ng3 Bxf1 13. Rxf1 fxe5 14. dxe5 {1-0 (43) Navara,D (2725)-Movsesian,S (2673) Prague 2016}) 11. O-O-O {[%emt 0:12:53]} cxd4 $146 {[%emt 0:03:50]} ({Predecessor:} 11... O-O 12. Kb1 Na5 13. Ng3 Bxf1 14. Rhxf1 {½-½ (39) Radovic,J (2330)-Haria,R (2398) Mamaia 2017}) 12. Nexd4 {[%emt 0:01:42]} Bxf1 {[%emt 0:03:10]} 13. Rhxf1 {[%emt 0:00:11]} Nxd4 {[%emt 0:00:57]} 14. Nxd4 {[%emt 0:00:22]} g6 {[%emt 0:11:31]} 15. g4 {[%emt 0:09:28]} Nc6 {[%emt 0:04:33]} 16. Nxc6 {[%emt 0:08:21]} Rxc6 {[%emt 0:00:40]} 17. f5 {[%emt 0:00:04]} Qe7 {[%emt 0:11:47]} 18. Qh6 {[%emt 0:10:52]} Qf8 {[%emt 0:04:46]} 19. Qe3 {[%emt 0:13:28]} Qe7 {[%emt 0:04:01]} 20. Kb1 {[%emt 0:03:02]} Qh4 {[%emt 0:03:10]} 21. Qf3 {[%emt 0:13:29]} O-O {[%emt 0:02:37]} 22. fxe6 {[%emt 0:00:41]} Rxe6 {[%emt 0:00:34]} 23. Rxd5 {[%emt 0:00:08]} Qe7 {[%emt 0:04:49]} 24. Qf4 {[%emt 0:01:22]} f6 {[%emt 0:00:57]} 25. Qc4 {[%emt 0:02:23]} Kg7 {[%emt 0:03:26]} 26. Rfd1 {[%emt 0:04:00]} Rf7 {[%emt 0:03:45]} 27. Rd7 {[%emt 0:01:10]} Qe8 {[%emt 0:00:04]} 28. Qc7 {[%emt 0:01:32]} Rfe7 {[%emt 0:03:22]} 29. exf6+ {[%emt 0:03:05]} Kxf6 {[%emt 0:00:03]} 30. Qf4+ {[%emt 0:01:21]} Kg7 {[%emt 0:00:40]} 31. Qd4+ {[%emt 0:00:38]} Kh6 {[%emt 0:02:06]} 32. Qd2+ {[%emt 0:00:37]} Kg7 {[%emt 0:00:23]} 33. a3 {[%emt 0:03:35]} Qf7 {[%emt 0:01:43]} 34. Qd4+ {[%emt 0:00:35]} Kh6 {[%emt 0:00:20]} 35. Qd2+ {[%emt 0:00:36]} Kg7 {[%emt 0:00:10]} 36. Rxe7 {[%emt 0:01:26]} Rxe7 {[%emt 0:00:58]} 37. Qd4+ {[%emt 0:00:30]} Kh6 {[%emt 0:01:31]} 38. Qd2+ {[%emt 0:00:52]} g5 {[%emt 0:02:39]} 39. h4 {[%emt 0:00:27]} Qg6+ {[%emt 0:00:37]} 40. Ka1 {[%emt 0:00:37]} Re5 {[%emt 0:03:12]} 41. Qd8 {[%emt 0:22:52]} gxh4 {[%emt 0:13:34]} 42. Rd6 {[%emt 0:00:52]} Re1+ {[%emt 0:04:18]} 43. Ka2 {[%emt 0:00:02]} Re6 {[%emt 0:00:04]} 44. Qxh4+ {[%emt 0:00:40]} Kg7 {[%emt 0:00:34]} 45. Rd7+ {[%emt 0:01:50]} Kg8 {[%emt 0:01:02]} 46. Rd8+ {[%emt 0:01:06]} Kg7 {[%emt 0:01:14]} 47. Qf2 {[%emt 0:02:03]} Rf6 $2 {[%emt 0:03:55]} (47... Re8 48. Rd7+ Kg8 49. Rxa7 Qe6+ 50. b3 Qe2+ 51. Qxe2 Rxe2+ 52. Kb1 Rg2) 48. Rd7+ {[%emt 0:00:30]} Kg8 {[%emt 0:00:25]} 49. Qd4 {[%emt 0:00:16]} Rf8 {[%emt 0:03:34]} 50. Rxa7 {[%emt 0:01:43]} b5 {[%emt 0:00:10]} 51. c4 {[%emt 0:01:09]} bxc4 {[%emt 0:00:42]} 52. Qxc4+ {[%emt 0:00:01]} Kh8 {[%emt 0:00:30]} 53. Qc3+ {[%emt 0:00:18]} Kg8 {[%emt 0:00:04]} 54. Qc4+ $2 {[%emt 0:00:06]} ({White should play} 54. Qb3+ $18 Kh8) 54... Kh8 {[%emt 0:00:07]} 55. Qd4+ {[%emt 0:00:03]} Kg8 {[%emt 0:00:15]} (55... Qf6 56. Qd7) 56. Qd5+ {[%emt 0:00:08]} Kh8 {[%emt 0:00:17]} 57. g5 {[%emt 0:01:02]} Qf5 {[%emt 0:01:11]} 58. Qd4+ {[%emt 0:00:34]} 1-0

[Event "CZE-ch Open 2019"]
[Site "Ostrava"]
[Date "2019.05.03"]
[Round "7.27"]
[White "Michenka, Jozef"]
[Black "Valencik, Jozef"]
[Result "1/2-1/2"]
[ECO "D53"]
[WhiteElo "2287"]
[BlackElo "2057"]
[Annotator "NA"]
[PlyCount "71"]
[EventDate "2019.04.27"]
[EventType "swiss"]
[EventCountry "CZE"]
[SourceTitle "playchess.com"]
[Source "ChessBase"]
[SourceQuality "1"]
[TimeControl "40/5400+30:1800+30"]

1. d4 {[%emt 0:00:00]} d5 {[%emt 0:00:00]} 2. c4 {[%emt 0:00:00]} e6 {[%emt 0:00:00]} 3. Nc3 {[%emt 0:00:00]} Nf6 {[%emt 0:00:00]} 4. Bg5 {[%emt 0:00:16]} Be7 {[%emt 0:00:21]} 5. e3 {[%emt 0:00:07]} h6 {[%emt 0:01:51]} 6. Bh4 {[%emt 0:00:05]} Nbd7 {[%emt 0:00:17]} 7. Nf3 {[%emt 0:00:13]} O-O {[%emt 0:00:24]} 8. Rc1 {[%emt 0:00:11]} b6 {[%emt 0:06:38]} 9. cxd5 {[%emt 0:01:21]} exd5 {[%emt 0:00:38]} 10. Be2 {[%emt 0:08:07]} Bb7 {[%emt 0:01:03]} 11. O-O {[%emt 0:00:13]} a6 {[%emt 0:15:05]} 12. Bg3 {[%emt 0:14:25]} Rc8 {[%emt 0:16:10]} 13. Ne5 {[%emt 0:02:34]} c5 {[%emt 0:05:20]} 14. f4 {[%emt 0:01:18]} b5 {[%emt 0:05:31]} 15. b3 {[%emt 0:05:23]} c4 {[%emt 0:03:40]} 16. bxc4 {[%emt 0:00:14]} dxc4 {[%emt 0:01:14]} 17. Bf3 {[%emt 0:00:45]} Qb6 {[%emt 0:06:53]} 18. e4 {[%emt 0:03:17]} Rfd8 {[%emt 0:03:04]} 19. Bf2 {[%emt 0:01:53]} Qa5 {[%emt 0:01:03]} 20. Nxf7 {[%emt 0:03:18]} Kxf7 {[%emt 0:05:36]} 21. e5 {[%emt 0:00:08]} Bxf3 {[%emt 0:01:20]} 22. Qxf3 {[%emt 0:00:02]} b4 {[%emt 0:04:12]} 23. exf6 {[%emt 0:04:07]} Nxf6 {[%emt 0:00:30]} 24. Ne4 {[%emt 0:00:53]} Nxe4 {[%emt 0:01:50]} 25. Qxe4 {[%emt 0:00:04]} Qd5 {[%emt 0:00:25]} 26. Qh7 {[%emt 0:02:30]} Rh8 {[%emt 0:01:27]} 27. Qc2 {[%emt 0:00:18]} Bf6 {[%emt 0:02:01]} 28. Rfe1 {[%emt 0:03:17]} a5 {[%emt 0:05:43]} 29. Re5 {[%emt 0:00:19]} Qd7 {[%emt 0:09:04]} 30. Rxa5 {[%emt 0:00:34]} Rhe8 {[%emt 0:00:47]} 31. Rd1 {[%emt 0:33:45]} Qd6 {[%emt 0:01:40]} 32. g3 {[%emt 0:02:24]} Qe6 {[%emt 0:01:37]} 33. Re1 {[%emt 0:01:48]} Qd7 {[%emt 0:00:20]} 34. Rd1 {[%emt 0:02:20]} Qe6 {[%emt 0:00:20]} 35. Re1 {[%emt 0:03:48]} Qd7 {[%emt 0:00:04]} 36. Rd1 1/2-1/2

[Event "CZE-ch Open 2019"]
[Site "Ostrava"]
[Date "2019.05.03"]
[Round "7.28"]
[White "Jedlicka, Ales"]
[Black "Vorisek, Jakub"]
[Result "1-0"]
[ECO "D34"]
[WhiteElo "2236"]
[BlackElo "1991"]
[Annotator "NA"]
[PlyCount "69"]
[EventDate "2019.04.27"]
[EventType "swiss"]
[EventCountry "CZE"]
[SourceTitle "playchess.com"]
[Source "ChessBase"]
[SourceQuality "1"]
[TimeControl "40/5400+30:1800+30"]

1. d4 {[%emt 0:00:00]} e6 {[%emt 0:00:07]} 2. c4 {[%emt 0:00:11]} d5 {[%emt 0:00:10]} 3. Nf3 {[%emt 0:00:25]} c5 {[%emt 0:01:03]} 4. cxd5 {[%emt 0:00:24]} exd5 {[%emt 0:00:10]} 5. Nc3 {[%emt 0:00:22]} Nc6 {[%emt 0:00:29]} 6. g3 {[%emt 0:00:21]} Nf6 {[%emt 0:00:47]} 7. Bg2 {[%emt 0:00:22]} Be7 {[%emt 0:00:28]} 8. O-O {[%emt 0:00:27]} O-O {[%emt 0:00:10]} 9. Bg5 {[%emt 0:00:44]} c4 {[%emt 0:00:32]} 10. Ne5 {[%emt 0:00:24]} Be6 {[%emt 0:00:27]} 11. e3 {[%emt 0:00:46]} h6 {[%emt 0:01:30]} 12. Bxf6 {[%emt 0:00:16]} Bxf6 {[%emt 0:00:06]} 13. f4 {[%emt 0:02:24]} Ne7 {[%emt 0:01:12]} 14. g4 {[%emt 0:03:02]} g6 {[%emt 0:18:42]} 15. Qf3 {[%emt 0:04:08]} Bxe5 {[%emt 0:13:53]} 16. fxe5 {[%emt 0:01:16]} Qd7 {[%emt 0:02:29]} 17. h3 {[%emt 0:01:06]} b5 {[%emt 0:01:21]} 18. Qf4 {[%emt 0:01:17]} Kh7 {[%emt 0:06:48]} 19. Ne2 {[%emt 0:09:20]} Rae8 {[%emt 0:06:07]} 20. Qg3 {[%emt 0:01:29]} a5 {[%emt 0:05:20]} 21. Rf2 {[%emt 0:03:45]} b4 {[%emt 0:05:18]} 22. Raf1 {[%emt 0:00:46]} a4 {[%emt 0:03:15]} 23. Nf4 {[%emt 0:03:40]} Kg7 {[%emt 0:04:31]} 24. h4 {[%emt 0:07:29]} Ng8 {[%emt 0:06:39]} 25. Bf3 {[%emt 0:05:06]} a3 {[%emt 0:01:33]} 26. bxa3 {[%emt 0:00:15]} bxa3 {[%emt 0:00:05]} 27. g5 {[%emt 0:00:55]} hxg5 {[%emt 0:01:08]} 28. Qxg5 {[%emt 0:00:26]} Qd8 {[%emt 0:02:59]} 29. Nh5+ {[%emt 0:01:05]} Kh7 {[%emt 0:01:23]} 30. Nf6+ {[%emt 0:00:38]} Nxf6 {[%emt 0:00:05]} 31. exf6 {[%emt 0:00:24]} Bf5 {[%emt 0:02:56]} 32. h5 {[%emt 0:03:31]} Re6 {[%emt 0:01:08]} 33. hxg6+ {[%emt 0:01:33]} Bxg6 {[%emt 0:00:07]} 34. Rh2+ {[%emt 0:00:21]} Kg8 {[%emt 0:00:11]} 35. Rh8+ {[%emt 0:01:07]} 1-0

[Event "CZE-ch Open 2019"]
[Site "Ostrava"]
[Date "2019.05.03"]
[Round "7.29"]
[White "Bulockin, Martin"]
[Black "Koubova, Anna Marie"]
[Result "1/2-1/2"]
[ECO "B50"]
[WhiteElo "2199"]
[BlackElo "2005"]
[Annotator "NA"]
[PlyCount "63"]
[EventDate "2019.04.27"]
[EventType "swiss"]
[EventCountry "CZE"]
[SourceTitle "playchess.com"]
[Source "ChessBase"]
[SourceQuality "1"]
[TimeControl "40/5400+30:1800+30"]

1. e4 {[%emt 0:00:00]} c5 {[%emt 0:00:00]} 2. Nf3 {[%emt 0:00:00]} d6 {[%emt 0:00:00]} 3. c3 {[%emt 0:00:24]} Nf6 {[%emt 0:00:27]} 4. Be2 {[%emt 0:00:07]} Nbd7 {[%emt 0:00:20]} 5. d3 {[%emt 0:00:32]} e6 {[%emt 0:00:51]} 6. h3 {[%emt 0:01:24]} Be7 {[%emt 0:00:42]} 7. O-O {[%emt 0:04:19]} O-O {[%emt 0:00:59]} 8. Bf4 {[%emt 0:03:52]} b6 {[%emt 0:01:19]} 9. Nbd2 {[%emt 0:03:41]} Bb7 {[%emt 0:05:38]} 10. Qc2 {[%emt 0:00:54]} Rc8 {[%emt 0:07:28]} 11. Bh2 {[%emt 0:02:02]} Re8 {[%emt 0:01:49]} 12. Rad1 {[%emt 0:01:42]} Nf8 {[%emt 0:15:07]} 13. Qb1 {[%emt 0:05:25]} Ng6 {[%emt 0:04:13]} 14. d4 {[%emt 0:10:43]} Nh5 {[%emt 0:01:15]} 15. Rfe1 {[%emt 0:07:17]} Nhf4 {[%emt 0:07:34]} 16. Bf1 {[%emt 0:01:17]} Qc7 {[%emt 0:01:07]} 17. dxc5 {[%emt 0:19:02]} dxc5 {[%emt 0:06:14]} 18. Qc1 {[%emt 0:02:37]} Rcd8 {[%emt 0:09:17]} 19. Qc2 {[%emt 0:04:25]} Qc8 {[%emt 0:04:41]} 20. a4 {[%emt 0:07:45]} Bd6 {[%emt 0:08:13]} 21. a5 {[%emt 0:03:56]} Bc7 {[%emt 0:05:14]} 22. g3 {[%emt 0:05:43]} Nh5 {[%emt 0:00:47]} 23. Qa4 {[%emt 0:00:25]} Nf6 {[%emt 0:01:10]} 24. e5 {[%emt 0:04:24]} Nd7 {[%emt 0:02:51]} 25. g4 {[%emt 0:02:00]} Qa8 {[%emt 0:02:23]} 26. Re3 {[%emt 0:03:41]} Bc6 {[%emt 0:00:36]} 27. Bb5 {[%emt 0:00:18]} Bxb5 {[%emt 0:00:21]} 28. Qxb5 {[%emt 0:00:01]} a6 {[%emt 0:00:34]} 29. Qe2 {[%emt 0:00:28]} b5 {[%emt 0:00:21]} 30. Ne4 {[%emt 0:02:41]} Ndxe5 {[%emt 0:06:16]} 31. Nxe5 {[%emt 0:00:28]} Bxe5 {[%emt 0:06:51]} 32. Bxe5 {[%emt 0:03:18]} 1/2-1/2

[Event "CZE-ch Open 2019"]
[Site "Ostrava"]
[Date "2019.05.03"]
[Round "7.30"]
[White "Malinovsky, Petr"]
[Black "Bartos, Jan"]
[Result "1/2-1/2"]
[ECO "E46"]
[WhiteElo "2003"]
[BlackElo "2178"]
[Annotator "NA"]
[PlyCount "83"]
[EventDate "2019.04.27"]
[EventType "swiss"]
[EventCountry "CZE"]
[SourceTitle "playchess.com"]
[Source "ChessBase"]
[SourceQuality "1"]
[TimeControl "40/5400+30:1800+30"]

1. d4 Nf6 2. c4 e6 3. Nc3 Bb4 4. e3 O-O 5. Nge2 Re8 6. a3 Bf8 7. e4 d5 8. e5 Nfd7 9. cxd5 exd5 10. f4 c5 11. Be3 cxd4 12. Nxd4 Nc6 13. Bb5 Ndxe5 14. fxe5 Rxe5 15. O-O Rxe3 16. Nxc6 bxc6 17. Bxc6 Bc5 18. Kh1 Ba6 19. Bxa8 Bxf1 20. Bxd5 Bd3 21. Bxf7+ Kxf7 22. Qh5+ Kg8 23. Qxc5 Qe8 24. h3 a6 25. Rd1 Re1+ 26. Rxe1 Qxe1+ 27. Kh2 Qd2 28. Qd5+ Kf8 29. Qd6+ Kf7 30. Ne4 Qe3 31. Qd7+ Kf8 32. Qd6+ Kf7 33. Qd5+ Kf8 34. Qf5+ Kg8 35. Qc8+ Kf7 36. Qc7+ Kf8 37. Qd8+ Kf7 38. Qc7+ Kf8 39. Qb8+ Kf7 40. Qb7+ Kf8 41. Qc8+ Ke7 42. Qc7+ 1/2-1/2

[Event "CZE-ch Open 2019"]
[Site "Ostrava"]
[Date "2019.05.03"]
[Round "7.31"]
[White "Vanek, Tomas"]
[Black "Jurek, Josef"]
[Result "1/2-1/2"]
[ECO "B40"]
[WhiteElo "2095"]
[BlackElo "2269"]
[Annotator "NA"]
[PlyCount "107"]
[EventDate "2019.04.27"]
[EventType "swiss"]
[EventCountry "CZE"]
[SourceTitle "playchess.com"]
[Source "ChessBase"]
[SourceQuality "1"]
[TimeControl "40/5400+30:1800+30"]

1. e4 {[%emt 0:00:00]} c5 {[%emt 0:00:00]} 2. Nf3 {[%emt 0:00:00]} e6 {[%emt 0:00:00]} 3. d3 {[%emt 0:00:11]} d5 {[%emt 0:00:41]} 4. Nbd2 {[%emt 0:00:22]} Nf6 {[%emt 0:00:34]} 5. g3 {[%emt 0:00:32]} Nc6 {[%emt 0:00:53]} 6. Bg2 {[%emt 0:00:08]} Be7 {[%emt 0:00:30]} 7. O-O {[%emt 0:00:19]} b6 {[%emt 0:01:27]} 8. Re1 {[%emt 0:00:51]} Qc7 {[%emt 0:00:48]} 9. Nf1 {[%emt 0:19:53]} dxe4 {[%emt 0:06:56] C00: French: Unusual White 2nd moves} 10. Ng5 $146 {[%emt 0:11:30]} ({Predecessor:} 10. dxe4 Ba6 11. Bf4 Qb7 12. c3 Rd8 13. Qc1 O-O 14. e5 Nd5 15. Bg5 Bd3 16. Ne3 Nxe3 17. Qxe3 Qc7 18. Rad1 {½-½ (39) Sadikhov,U (2483)-Nevednichy,V (2533) Cesme 2017}) 10... exd3 {[%emt 0:05:24]} 11. Qxd3 {[%emt 0:01:39]} Bb7 {[%emt 0:04:06]} 12. Bf4 {[%emt 0:07:10]} Qd7 {[%emt 0:05:36]} 13. Qxd7+ {[%emt 0:11:48]} Nxd7 {[%emt 0:00:22]} 14. Nxe6 {[%emt 0:00:40]} fxe6 {[%emt 0:02:42]} 15. Rxe6 {[%emt 0:00:14]} Nd8 {[%emt 0:18:26]} 16. Bxb7 {[%emt 0:03:33]} Nxe6 {[%emt 0:00:25]} 17. Bxa8 {[%emt 0:00:04]} Nxf4 {[%emt 0:02:54]} 18. gxf4 {[%emt 0:00:05]} Rf8 {[%emt 0:03:53]} 19. Ng3 {[%emt 0:11:02]} Rxf4 {[%emt 0:02:25]} 20. Bc6 {[%emt 0:02:56]} Kd8 {[%emt 0:07:07]} 21. Rd1 {[%emt 0:04:43]} Rd4 {[%emt 0:00:26]} 22. Rxd4 {[%emt 0:00:12]} cxd4 {[%emt 0:00:09]} 23. Bxd7 {[%emt 0:05:45]} Kxd7 {[%emt 0:00:10]} 24. Ne2 {[%emt 0:00:33]} Bf6 {[%emt 0:03:34]} 25. Nf4 {[%emt 0:00:39]} Bg5 {[%emt 0:05:39]} 26. Nd3 {[%emt 0:00:12]} Ke6 {[%emt 0:02:43]} 27. f4 {[%emt 0:02:52]} Be7 {[%emt 0:01:18]} 28. Kg2 {[%emt 0:00:43]} Kf5 {[%emt 0:01:36]} 29. Kf3 {[%emt 0:00:05]} Bd6 {[%emt 0:01:14]} 30. h3 {[%emt 0:04:27]} g6 {[%emt 0:01:23]} 31. a4 {[%emt 0:01:21]} a6 {[%emt 0:04:54]} 32. b4 {[%emt 0:00:35]} h6 {[%emt 0:08:03]} 33. b5 {[%emt 0:02:36]} a5 {[%emt 0:01:15]} 34. h4 {[%emt 0:03:31]} Bc7 {[%emt 0:01:01]} 35. Kg3 {[%emt 0:05:03]} g5 {[%emt 0:00:31]} 36. hxg5 {[%emt 0:00:06]} hxg5 {[%emt 0:00:09]} 37. Kf3 {[%emt 0:00:20]} Bxf4 {[%emt 0:01:05]} 38. Nf2 {[%emt 0:00:32]} Ke5 {[%emt 0:02:52]} 39. Nd3+ {[%emt 0:00:32]} Kf5 {[%emt 0:01:07]} 40. Nf2 {[%emt 0:00:15]} Bc7 {[%emt 0:02:14]} 41. Ng4 {[%emt 0:30:13]} Bd8 {[%emt 0:32:35]} 42. Nh6+ {[%emt 0:00:00]} Kg6 {[%emt 0:00:00]} 43. Ng4 {[%emt 0:00:00]} Kh5 {[%emt 0:00:00]} 44. Ne5 {[%emt 0:00:00]} Bc7 {[%emt 0:00:00]} 45. Ng4 {[%emt 0:00:00]} Kh4 {[%emt 0:00:00]} 46. Nf6 {[%emt 0:00:00]} Bd8 {[%emt 0:00:00]} 47. Ng4 {[%emt 0:00:00]} Be7 {[%emt 0:00:00]} 48. Nf2 {[%emt 0:00:00]} Bd6 {[%emt 0:00:00]} 49. Ng4 {[%emt 0:00:00]} Bf4 {[%emt 0:00:00]} 50. Nf6 {[%emt 0:00:00]} Be3 {[%emt 0:00:00]} 51. Ng4 $1 {[%emt 0:00:46]} Bf4 {[%emt 0:00:00]} ({Black should play} 51... Bd2 $17) 52. Nf6 $1 {[%emt 0:00:52]} Bd6 {[%emt 0:00:00]} (52... Bc7 $15) 53. Ng4 {[%emt 0:00:08]} Kh5 {[%emt 0:00:00]} 54. Nf2 $15 {[%emt 0:01:12]} 1/2-1/2

[Event "CZE-ch Open 2019"]
[Site "Ostrava"]
[Date "2019.05.03"]
[Round "7.32"]
[White "Pavlicek, Lukas"]
[Black "Holy, Filip"]
[Result "1/2-1/2"]
[ECO "D10"]
[WhiteElo "1963"]
[BlackElo "2096"]
[Annotator "NA"]
[PlyCount "60"]
[EventDate "2019.04.27"]
[EventType "swiss"]
[EventCountry "CZE"]
[SourceTitle "playchess.com"]
[Source "ChessBase"]
[SourceQuality "1"]
[TimeControl "40/5400+30:1800+30"]

1. c4 {[%emt 0:00:00]} c6 {[%emt 0:04:10]} 2. Nf3 {[%emt 0:00:00]} d5 {[%emt 0:00:03]} 3. cxd5 {[%emt 0:00:00]} cxd5 {[%emt 0:00:04]} 4. d4 {[%emt 0:00:06]} Nf6 {[%emt 0:00:05]} 5. Nc3 {[%emt 0:00:13]} a6 {[%emt 0:00:04]} 6. Bf4 {[%emt 0:00:17]} Nc6 {[%emt 0:00:04]} 7. e3 {[%emt 0:00:09]} Bg4 {[%emt 0:00:05]} 8. Be2 {[%emt 0:00:15]} e6 {[%emt 0:01:02]} 9. Ne5 {[%emt 0:03:50]} Bxe2 {[%emt 0:00:06]} 10. Qxe2 {[%emt 0:03:02]} Rc8 {[%emt 0:00:59]} 11. O-O {[%emt 0:02:42]} Bd6 {[%emt 0:03:14]} 12. Nxc6 {[%emt 0:01:24]} Rxc6 {[%emt 0:00:12]} 13. Bxd6 {[%emt 0:00:41]} Qxd6 {[%emt 0:00:10]} 14. Rac1 {[%emt 0:05:00]} O-O {[%emt 0:01:49]} 15. f3 {[%emt 0:03:39]} Rfc8 {[%emt 0:01:11]} 16. Qd2 {[%emt 0:02:26]} h6 {[%emt 0:02:58]} 17. Ne2 {[%emt 0:14:10]} Rc4 {[%emt 0:01:09]} 18. b3 {[%emt 0:06:02]} R4c6 {[%emt 0:00:15]} 19. Rxc6 {[%emt 0:01:50]} Rxc6 {[%emt 0:00:04]} 20. Rc1 {[%emt 0:00:47]} Qc7 {[%emt 0:00:39]} 21. Rxc6 {[%emt 0:01:20]} Qxc6 {[%emt 0:00:07]} 22. Qc3 {[%emt 0:04:35]} Qxc3 {[%emt 0:00:04]} 23. Nxc3 {[%emt 0:00:03]} Kf8 {[%emt 0:00:47]} 24. Na4 {[%emt 0:02:14]} Nd7 {[%emt 0:00:20]} 25. Kf2 {[%emt 0:06:03]} Ke7 {[%emt 0:00:14]} 26. Ke2 {[%emt 0:02:19]} Kd6 {[%emt 0:00:22]} 27. Kd3 {[%emt 0:00:25]} Kc6 {[%emt 0:00:56]} 28. Nc3 {[%emt 0:00:50]} Nf6 {[%emt 0:00:31]} 29. Ne2 {[%emt 0:03:55]} Kb5 {[%emt 0:01:39]} 30. a3 {[%emt 0:00:21]} Kc6 {[%emt 0:01:38] Ke4} 1/2-1/2